[Event "ESP-ch Rapid 2018"]
[Site "Linares"]
[Date "2018.08.19"]
[Round "1"]
[White "Martin Rueda, Daniel"]
[Black "Vazquez Gonzalez, Francisco"]
[Result "1-0"]
[ECO "A80"]
[WhiteElo "2267"]
[BlackElo "1926"]
[Annotator "NA"]
[PlyCount "71"]
[EventDate "2018.08.19"]
[EventType "team-tourn"]
[EventCountry "ESP"]
[SourceTitle "playchess.com"]
[Source "ChessBase"]
[SourceQuality "1"]
[TimeControl "900+5"]

1. d4 {[%emt 0:00:00]} f5 {[%emt 0:00:00]} 2. Bg5 {[%emt 0:00:01]} Nf6 {[%emt 0:00:00]} 3. Bxf6 {[%emt 0:00:05]} exf6 {[%emt 0:00:01]} 4. e3 {[%emt 0:00:13]} c6 {[%emt 0:00:05]} 5. c4 {[%emt 0:00:09]} Bb4+ {[%emt 0:01:11]} 6. Nc3 {[%emt 0:00:01]} Qa5 {[%emt 0:00:02]} 7. Nge2 {[%emt 0:00:08]} d5 {[%emt 0:00:16]} 8. a3 {[%emt 0:00:25]} Bxc3+ {[%emt 0:00:33]} 9. Nxc3 {[%emt 0:00:02]} dxc4 {[%emt 0:00:14]} 10. Bxc4 {[%emt 0:00:09]} b5 {[%emt 0:00:02]} 11. Ba2 {[%emt 0:03:39]} b4 {[%emt 0:01:09]} 12. axb4 {[%emt 0:00:02]} Qxb4 {[%emt 0:00:01]} 13. O-O {[%emt 0:00:05]} Ba6 {[%emt 0:00:20]} 14. Re1 {[%emt 0:00:32]} Bc4 {[%emt 0:00:04]} 15. Qh5+ {[%emt 0:01:51]} g6 {[%emt 0:00:11]} 16. Qh6 {[%emt 0:00:03]} Bxa2 {[%emt 0:01:38]} 17. Rxa2 {[%emt 0:00:09]} Qf8 {[%emt 0:00:06]} 18. Qf4 {[%emt 0:00:03]} Qf7 {[%emt 0:00:35]} 19. e4 {[%emt 0:00:57]} O-O {[%emt 0:02:27]} 20. exf5 {[%emt 0:00:04]} Re8 {[%emt 0:01:13]} 21. Rxe8+ {[%emt 0:01:34]} Qxe8 {[%emt 0:00:01]} 22. Ra1 {[%emt 0:02:02]} g5 {[%emt 0:01:20]} 23. Qd6 {[%emt 0:00:19]} Kf7 {[%emt 0:01:33]} 24. Qc7+ {[%emt 0:01:02]} Qe7 {[%emt 0:00:04]} 25. Qc8 {[%emt 0:00:03]} Qd7 {[%emt 0:01:09]} 26. Qh8 {[%emt 0:00:04]} Qxf5 {[%emt 0:00:06]} 27. Re1 {[%emt 0:00:13]} Kg6 {[%emt 0:00:35]} 28. Qg8+ {[%emt 0:00:55]} Kh6 {[%emt 0:00:29]} 29. Re3 {[%emt 0:00:35]} g4 {[%emt 0:00:18]} 30. Qf8+ {[%emt 0:00:20]} Kg5 {[%emt 0:00:26]} 31. Ne4+ {[%emt 0:00:09]} Kg6 {[%emt 0:00:17]} 32. Qe8+ {[%emt 0:00:20]} Kh6 {[%emt 0:00:12]} 33. Ng3 {[%emt 0:00:50]} Qb1+ {[%emt 0:00:04]} 34. Re1 {[%emt 0:00:01]} Qg6 {[%emt 0:00:02]} 35. Qf8+ {[%emt 0:00:02]} Qg7 {[%emt 0:00:03]} 36. Nf5+ {[%emt 0:00:01]} 1-0

[Event "ESP-ch Rapid 2018"]
[Site "Linares"]
[Date "2018.08.19"]
[Round "1"]
[White "Jimenez Martinez, Jose Vicente"]
[Black "Ladron De Guevara Bravo, Fermin"]
[Result "1-0"]
[ECO "D44"]
[WhiteElo "2243"]
[BlackElo "1672"]
[Annotator "NA"]
[PlyCount "55"]
[EventDate "2018.08.19"]
[EventType "team-tourn"]
[EventCountry "ESP"]
[SourceTitle "playchess.com"]
[Source "ChessBase"]
[SourceQuality "1"]
[TimeControl "900+5"]

1. d4 {[%emt 0:02:24]} d5 {[%emt 0:00:01]} 2. c4 {[%emt 0:00:01]} e6 {[%emt 0:00:03]} 3. Nf3 {[%emt 0:00:02]} c6 {[%emt 0:00:07]} 4. Nc3 {[%emt 0:00:01]} dxc4 {[%emt 0:00:08]} 5. Bg5 {[%emt 0:00:02]} Nf6 {[%emt 0:00:20]} 6. e4 {[%emt 0:00:02]} b5 {[%emt 0:00:06]} 7. e5 {[%emt 0:00:01]} h6 {[%emt 0:00:10]} 8. Bh4 {[%emt 0:00:02]} g5 {[%emt 0:00:02]} 9. Nxg5 {[%emt 0:00:01]} hxg5 {[%emt 0:00:22]} 10. Bxg5 {[%emt 0:00:03]} Be7 {[%emt 0:00:13]} 11. exf6 {[%emt 0:00:02]} Bxf6 {[%emt 0:00:03]} 12. Bxf6 {[%emt 0:00:08]} Qxf6 {[%emt 0:00:02]} 13. Be2 {[%emt 0:00:07]} Bb7 {[%emt 0:00:13]} 14. Bf3 {[%emt 0:00:01]} Nd7 {[%emt 0:00:08]} 15. Nxb5 {[%emt 0:00:41]} Ke7 {[%emt 0:03:11]} 16. Nc3 {[%emt 0:00:14]} Nb6 {[%emt 0:00:23]} 17. Ne4 {[%emt 0:00:22]} Qf4 {[%emt 0:03:26]} 18. Nc5 {[%emt 0:00:18]} Rab8 {[%emt 0:01:50]} 19. g3 {[%emt 0:00:09]} Qf6 {[%emt 0:00:56]} 20. Ne4 {[%emt 0:00:46]} Qg7 {[%emt 0:00:41]} 21. Qd2 {[%emt 0:00:07]} Rhd8 {[%emt 0:02:24]} 22. Qb4+ {[%emt 0:00:19]} Ke8 {[%emt 0:00:44]} 23. Nd6+ {[%emt 0:00:02]} Kd7 {[%emt 0:00:16]} 24. Qc5 {[%emt 0:00:35]} Nd5 {[%emt 0:00:49]} 25. Nxc4 {[%emt 0:00:12]} Kc7 {[%emt 0:00:12]} 26. Rc1 {[%emt 0:00:28]} Ba6 {[%emt 0:00:02]} 27. Ne5 {[%emt 0:00:31]} Bb7 {[%emt 0:00:11]} 28. Nxc6 {[%emt 0:00:05]} 1-0

[Event "ESP-ch Rapid 2018"]
[Site "Linares"]
[Date "2018.08.19"]
[Round "1"]
[White "Carretero Ortiz, Francisco"]
[Black "Fernandez Lopez, Marcos II"]
[Result "1-0"]
[ECO "C41"]
[WhiteElo "2241"]
[BlackElo "1780"]
[Annotator "NA"]
[PlyCount "23"]
[EventDate "2018.08.19"]
[EventType "team-tourn"]
[EventCountry "ESP"]
[SourceTitle "playchess.com"]
[Source "ChessBase"]
[SourceQuality "1"]
[TimeControl "900+5"]

1. e4 {[%emt 0:00:00]} e5 {[%emt 0:00:00]} 2. Nf3 {[%emt 0:00:00]} d6 {[%emt 0:00:00]} 3. Bc4 {[%emt 0:00:00]} Be7 {[%emt 0:00:00]} 4. d4 {[%emt 0:00:01]} exd4 {[%emt 0:00:03]} 5. c3 {[%emt 0:00:01]} dxc3 {[%emt 0:00:16]} 6. Qb3 {[%emt 0:00:21]} cxb2 {[%emt 0:02:20]} 7. Bxf7+ {[%emt 0:00:21]} Kf8 {[%emt 0:00:01]} 8. Bxb2 {[%emt 0:00:13]} Bf6 {[%emt 0:00:42]} 9. e5 {[%emt 0:01:35]} dxe5 {[%emt 0:00:43]} 10. Bxg8 {[%emt 0:01:15]} Rxg8 {[%emt 0:00:07]} 11. Ba3+ {[%emt 0:00:11]} Ke8 {[%emt 0:00:30]} 12. Qxg8+ {[%emt 0:00:07] Be7 Ng5+} 1-0

[Event "ESP-ch Rapid 2018"]
[Site "Linares"]
[Date "2018.08.19"]
[Round "1"]
[White "Silva Rodriguez, Fernando"]
[Black "Lozano Aguilar, Juan Francisco"]
[Result "1-0"]
[ECO "D20"]
[WhiteElo "2239"]
[BlackElo "1776"]
[Annotator "NA"]
[PlyCount "49"]
[EventDate "2018.08.19"]
[EventType "team-tourn"]
[EventCountry "ESP"]
[SourceTitle "playchess.com"]
[Source "ChessBase"]
[SourceQuality "1"]
[TimeControl "900+5"]

1. d4 {[%emt 0:00:00]} d5 {[%emt 0:00:00]} 2. c4 {[%emt 0:00:00]} dxc4 {[%emt 0:00:00]} 3. e4 {[%emt 0:00:02]} Nf6 {[%emt 0:00:01]} 4. e5 {[%emt 0:00:01]} Nd5 {[%emt 0:00:10]} 5. Bxc4 {[%emt 0:00:03]} Nb6 {[%emt 0:00:09]} 6. Bd3 {[%emt 0:00:44]} Nc6 {[%emt 0:00:35]} 7. Be3 {[%emt 0:00:02]} Nd5 {[%emt 0:00:53]} 8. Nc3 {[%emt 0:00:17]} e6 {[%emt 0:00:46]} 9. Nge2 {[%emt 0:00:14]} Nxe3 {[%emt 0:00:43]} 10. fxe3 {[%emt 0:00:02]} Qg5 {[%emt 0:00:09]} 11. Qd2 {[%emt 0:01:26]} Bb4 {[%emt 0:00:30]} 12. O-O {[%emt 0:00:15]} Nxd4 {[%emt 0:00:32]} 13. Nxd4 {[%emt 0:00:13]} Qxe5 {[%emt 0:00:29]} 14. Rf3 {[%emt 0:00:27]} Bd7 {[%emt 0:00:28]} 15. Qc2 {[%emt 0:00:14]} Bd6 {[%emt 0:00:20]} 16. g3 {[%emt 0:00:40]} c5 {[%emt 0:00:55]} 17. Ndb5 {[%emt 0:00:30]} Bb8 {[%emt 0:01:29]} 18. Be4 {[%emt 0:00:32]} Bc6 {[%emt 0:01:10]} 19. Bxc6+ {[%emt 0:00:08]} bxc6 {[%emt 0:00:02]} 20. Na3 {[%emt 0:00:09]} Qh5 {[%emt 0:00:26]} 21. Qe4 {[%emt 0:00:36]} O-O {[%emt 0:00:13]} 22. Rf2 {[%emt 0:00:24]} Bc7 {[%emt 0:00:18]} 23. Nc4 {[%emt 0:00:17]} Rad8 {[%emt 0:00:34]} 24. Qxc6 {[%emt 0:00:08]} Be5 {[%emt 0:00:13]} 25. Qxc5 {[%emt 0:00:17]} 1-0

[Event "ESP-ch Rapid 2018"]
[Site "Linares"]
[Date "2018.08.19"]
[Round "1"]
[White "Sande Edreira, Jose Antonio"]
[Black "Roldan Marques, Daniel"]
[Result "1-0"]
[ECO "A20"]
[WhiteElo "2230"]
[BlackElo "2161"]
[Annotator "NA"]
[PlyCount "57"]
[EventDate "2018.08.19"]
[EventType "team-tourn"]
[EventCountry "ESP"]
[SourceTitle "playchess.com"]
[Source "ChessBase"]
[SourceQuality "1"]
[TimeControl "900+5"]

1. c4 {[%emt 0:00:00]} e5 {[%emt 0:00:00]} 2. g3 {[%emt 0:00:00]} Nf6 {[%emt 0:00:00]} 3. Bg2 {[%emt 0:00:00]} c6 {[%emt 0:00:02]} 4. d4 {[%emt 0:00:04]} e4 $11 {[%emt 0:00:02] LiveBook: 139 Partien} 5. Nc3 {[%emt 0:00:05]} d5 {[%emt 0:00:02]} 6. cxd5 {[%emt 0:00:03]} cxd5 {[%emt 0:00:03]} 7. Bg5 {[%emt 0:00:07]} Nc6 {[%emt 0:02:36]} 8. Nh3 {[%emt 0:00:03]} Bxh3 {[%emt 0:03:13]} 9. Bxh3 {[%emt 0:00:03]} Be7 {[%emt 0:00:41]} 10. O-O {[%emt 0:00:04]} O-O {[%emt 0:00:12]} 11. e3 {[%emt 0:00:04]} Nd7 {[%emt 0:00:29]} 12. Bxe7 {[%emt 0:02:56]} Nxe7 {[%emt 0:00:02]} 13. Qb3 {[%emt 0:00:40]} Nb6 {[%emt 0:00:03]} 14. a4 {[%emt 0:00:32]} Rb8 {[%emt 0:01:16]} 15. Rfc1 {[%emt 0:00:13]} f5 {[%emt 0:00:15]} 16. Bf1 {[%emt 0:00:09]} Qd7 {[%emt 0:01:44]} 17. a5 {[%emt 0:01:49]} Na8 {[%emt 0:00:18]} 18. Rc2 {[%emt 0:02:31]} Nc7 {[%emt 0:00:21]} 19. Rac1 {[%emt 0:00:02]} Ne6 {[%emt 0:00:36]} 20. Nb5 {[%emt 0:00:43]} a6 {[%emt 0:00:27]} 21. Nc7 {[%emt 0:00:04]} Ng5 {[%emt 0:01:36]} 22. Nxd5 {[%emt 0:00:08]} Nxd5 {[%emt 0:01:15]} 23. Rc5 {[%emt 0:00:01]} Rbd8 {[%emt 0:00:47]} 24. Rxd5 {[%emt 0:00:03]} Qf7 {[%emt 0:00:28]} 25. Bc4 {[%emt 0:00:02]} Nf3+ {[%emt 0:00:05]} 26. Kh1 {[%emt 0:00:46]} Nd2 {[%emt 0:00:28]} 27. Rxd8 {[%emt 0:00:03]} Nxb3 {[%emt 0:00:05]} 28. Bxf7+ {[%emt 0:00:17]} Kxf7 {[%emt 0:00:03]} 29. Rc7+ {[%emt 0:00:06]} 1-0

[Event "ESP-ch Rapid 2018"]
[Site "Linares"]
[Date "2018.08.19"]
[Round "1"]
[White "Gomez Sanjuan, Hector Fernando"]
[Black "Garcia Romero, Benjamin Abel"]
[Result "1-0"]
[ECO "D36"]
[WhiteElo "2146"]
[BlackElo "2230"]
[Annotator "NA"]
[PlyCount "81"]
[EventDate "2018.08.19"]
[EventType "team-tourn"]
[EventCountry "ESP"]
[SourceTitle "playchess.com"]
[Source "ChessBase"]
[SourceQuality "1"]
[TimeControl "900+5"]

1. d4 {[%emt 0:00:00]} Nf6 {[%emt 0:00:00]} 2. c4 {[%emt 0:00:01]} e6 {[%emt 0:00:05]} 3. Nc3 {[%emt 0:00:04]} d5 {[%emt 0:00:03]} 4. cxd5 {[%emt 0:00:05]} exd5 {[%emt 0:00:02]} 5. Bg5 {[%emt 0:00:04]} c6 {[%emt 0:00:02]} 6. Qc2 {[%emt 0:00:03]} Be7 {[%emt 0:00:03]} 7. e3 {[%emt 0:00:02]} g6 {[%emt 0:00:04]} 8. Bd3 {[%emt 0:00:06]} Na6 {[%emt 0:00:01]} 9. a3 {[%emt 0:00:10]} Nc7 {[%emt 0:00:01]} 10. Nf3 {[%emt 0:00:11]} Ne6 {[%emt 0:00:02]} 11. Bh4 {[%emt 0:00:36]} O-O {[%emt 0:00:11]} 12. O-O {[%emt 0:00:04]} a5 {[%emt 0:01:03]} 13. Rab1 {[%emt 0:00:17]} Ng7 {[%emt 0:00:06]} 14. b4 {[%emt 0:00:17]} axb4 {[%emt 0:00:02]} 15. axb4 {[%emt 0:00:01]} Bf5 {[%emt 0:00:01]} 16. Bxf6 {[%emt 0:01:06]} Bxf6 {[%emt 0:00:06]} 17. b5 {[%emt 0:00:01]} Bxd3 {[%emt 0:00:37]} 18. Qxd3 {[%emt 0:00:02]} Ra3 {[%emt 0:00:07]} 19. bxc6 {[%emt 0:01:21]} bxc6 {[%emt 0:00:04]} 20. Ra1 {[%emt 0:00:01]} Qd6 {[%emt 0:00:07]} 21. Rxa3 {[%emt 0:02:10]} Qxa3 {[%emt 0:00:02]} 22. Qc2 {[%emt 0:01:23]} Rb8 {[%emt 0:04:17]} 23. Rb1 {[%emt 0:00:31]} Rxb1+ {[%emt 0:00:46]} 24. Nxb1 {[%emt 0:00:32]} Qa1 {[%emt 0:00:14]} 25. Nfd2 {[%emt 0:00:19]} Qa6 {[%emt 0:00:13]} 26. g3 {[%emt 0:00:19]} Ne6 {[%emt 0:00:01]} 27. Nb3 {[%emt 0:00:08]} Kg7 {[%emt 0:00:59]} 28. Kg2 {[%emt 0:00:06]} h5 {[%emt 0:00:03]} 29. h4 {[%emt 0:00:23]} Be7 {[%emt 0:00:04]} 30. N1d2 {[%emt 0:00:21]} Qa4 {[%emt 0:00:44]} 31. Qc3 {[%emt 0:00:45]} Bb4 {[%emt 0:00:06]} 32. Qd3 {[%emt 0:00:18]} Qa2 {[%emt 0:00:38]} 33. Nf3 {[%emt 0:00:40]} Bd6 {[%emt 0:00:02]} 34. Qc3 {[%emt 0:00:21]} Qa3 {[%emt 0:02:54]} 35. Qxc6 {[%emt 0:00:43]} Bxg3 {[%emt 0:00:04]} 36. Qxd5 {[%emt 0:00:23]} Bc7 {[%emt 0:01:11]} 37. Nc5 {[%emt 0:00:33]} Nxc5 {[%emt 0:00:42]} 38. dxc5 {[%emt 0:00:27]} Qa7 {[%emt 0:00:39]} 39. c6 {[%emt 0:00:34]} Kf8 {[%emt 0:00:16]} 40. Qd7 {[%emt 0:00:14]} Qa4 {[%emt 0:00:47]} 41. Qxc7 {[%emt 0:00:11]} 1-0

[Event "ESP-ch Rapid 2018"]
[Site "Linares"]
[Date "2018.08.19"]
[Round "1"]
[White "Iglesias Leon, Francisco J"]
[Black "Ojeda Perez, Jesus"]
[Result "1-0"]
[ECO "A04"]
[WhiteElo "2129"]
[BlackElo "1659"]
[Annotator "NA"]
[PlyCount "48"]
[EventDate "2018.08.19"]
[EventType "team-tourn"]
[EventCountry "ESP"]
[SourceTitle "playchess.com"]
[Source "ChessBase"]
[SourceQuality "1"]
[TimeControl "900+5"]

1. Nf3 {[%emt 0:00:00]} f5 {[%emt 0:00:00]} 2. b3 {[%emt 0:00:02]} Nc6 {[%emt 0:00:03]} 3. Bb2 {[%emt 0:00:02]} Nf6 {[%emt 0:00:06]} 4. g3 {[%emt 0:00:03]} e6 {[%emt 0:00:24]} 5. Bg2 {[%emt 0:00:02]} Bc5 {[%emt 0:01:05]} 6. O-O {[%emt 0:00:07]} O-O {[%emt 0:00:06]} 7. c4 {[%emt 0:00:03]} a5 {[%emt 0:01:03]} 8. d3 {[%emt 0:00:17]} a4 {[%emt 0:01:01]} 9. bxa4 {[%emt 0:00:45]} d5 {[%emt 0:02:02]} 10. Nbd2 {[%emt 0:00:28]} Bb6 {[%emt 0:02:26]} 11. Qc2 {[%emt 0:00:27]} Nb4 {[%emt 0:00:42]} 12. Qb3 {[%emt 0:00:11]} Nc6 {[%emt 0:00:22]} 13. cxd5 {[%emt 0:00:12]} Nxd5 {[%emt 0:00:47]} 14. Nc4 {[%emt 0:00:08]} Na5 {[%emt 0:00:40]} 15. Qc2 {[%emt 0:00:44]} Nxc4 {[%emt 0:00:58]} 16. dxc4 {[%emt 0:00:03]} Nb4 {[%emt 0:00:47]} 17. Qc3 {[%emt 0:00:06]} Qe7 {[%emt 0:00:01]} 18. Rfd1 {[%emt 0:00:36]} c6 {[%emt 0:00:47]} 19. Ne5 {[%emt 0:00:25]} Rxa4 {[%emt 0:00:13]} 20. a3 {[%emt 0:00:33]} Nc2 {[%emt 0:00:47]} 21. Qxc2 {[%emt 0:00:05]} Ra5 {[%emt 0:00:18]} 22. Bc3 {[%emt 0:00:48]} Rxa3 {[%emt 0:00:29]} 23. Rxa3 {[%emt 0:00:52]} Qxa3 {[%emt 0:00:03]} 24. Qb2 {[%emt 0:00:03]} Qc5 {[%emt 0:01:04]} 1-0

[Event "ESP-ch Rapid 2018"]
[Site "Linares"]
[Date "2018.08.19"]
[Round "1"]
[White "Arroyo Rodriguez, Jesus"]
[Black "Matnadze, Ana"]
[Result "1/2-1/2"]
[ECO "A05"]
[WhiteElo "2099"]
[BlackElo "2378"]
[Annotator "ChessBase"]
[PlyCount "98"]
[EventDate "2018.08.19"]
[EventType "team-tourn"]
[EventCountry "ESP"]
[SourceTitle "playchess.com"]
[Source "ChessBase"]
[SourceQuality "1"]
[TimeControl "900+5"]

1. Nf3 {[%emt 0:03:37]} Nf6 {[%emt 0:00:00]} 2. g3 {[%emt 0:00:07]} b6 {[%emt 0:00:09]} 3. Bg2 {[%emt 0:00:16]} Bb7 {[%emt 0:00:02]} 4. b3 {[%emt 0:00:35]} g6 {[%emt 0:00:08]} 5. Bb2 {[%emt 0:00:07]} Bg7 {[%emt 0:00:02]} 6. O-O {[%emt 0:00:08]} O-O {[%emt 0:00:03]} 7. d3 {[%emt 0:01:24]} d5 {[%emt 0:00:57]} 8. c4 {[%emt 0:00:03]} e6 {[%emt 0:00:18]} 9. Nbd2 {[%emt 0:01:19]} a5 {[%emt 0:00:07]} 10. a3 {[%emt 0:00:06]} c5 {[%emt 0:00:08]} 11. cxd5 {[%emt 0:01:05]} exd5 {[%emt 0:00:06]} 12. d4 {[%emt 0:01:01]} Ne4 {[%emt 0:00:15]} 13. Qc2 {[%emt 0:02:52]} Nd7 {[%emt 0:00:51]} 14. dxc5 {[%emt 0:00:26]} Ndxc5 {[%emt 0:00:13]} 15. Bxg7 {[%emt 0:00:14]} Kxg7 {[%emt 0:00:02]} 16. b4 {[%emt 0:00:41]} Ne6 {[%emt 0:00:22]} 17. Qb2+ {[%emt 0:00:24]} Qf6 {[%emt 0:00:05]} 18. Qxf6+ {[%emt 0:00:05]} Nxf6 {[%emt 0:01:25]} 19. e3 {[%emt 0:00:42]} Rfc8 {[%emt 0:00:37]} 20. Nb3 {[%emt 0:00:32]} Ne4 {[%emt 0:00:51]} 21. bxa5 {[%emt 0:00:04]} bxa5 {[%emt 0:00:04]} 22. Rfc1 {[%emt 0:00:15]} Nc3 {[%emt 0:00:34]} 23. Bf1 {[%emt 0:00:07]} Kf6 {[%emt 0:01:14]} 24. Rc2 {[%emt 0:00:12]} Ne4 {[%emt 0:01:32]} 25. Rac1 {[%emt 0:00:04]} Rxc2 {[%emt 0:00:11]} 26. Rxc2 {[%emt 0:00:00]} g5 {[%emt 0:00:07]} 27. Nfd4 {[%emt 0:00:01]} a4 {[%emt 0:00:43]} 28. Nxe6 {[%emt 0:00:04]} fxe6 {[%emt 0:00:01]} 29. Nd4 {[%emt 0:00:01]} e5 {[%emt 0:01:10]} 30. Nb5 {[%emt 0:00:02]} Rc8 {[%emt 0:00:08]} 31. Bd3 {[%emt 0:00:10]} Rxc2 {[%emt 0:00:36]} 32. Bxc2 {[%emt 0:00:01]} Nc5 {[%emt 0:00:51]} 33. Bxh7 {[%emt 0:00:29]} e4 {[%emt 0:00:01]} 34. h4 {[%emt 0:00:11]} gxh4 {[%emt 0:00:16]} 35. gxh4 {[%emt 0:00:01]} Nd3 {[%emt 0:00:00]} 36. Nd4 {[%emt 0:00:04]} Bc8 {[%emt 0:00:07]} 37. Bg8 {[%emt 0:00:04]} Bb7 {[%emt 0:00:24]} 38. Kg2 {[%emt 0:00:15]} Ne5 {[%emt 0:00:04]} 39. Kg3 {[%emt 0:00:08]} Nc4 {[%emt 0:00:08]} 40. Nc2 {[%emt 0:00:08]} Nd6 {[%emt 0:00:44]} 41. Kf4 {[%emt 0:00:04]} Nb5 {[%emt 0:00:12]} 42. h5 {[%emt 0:00:08]} Kg7 {[%emt 0:00:22]} 43. Be6 {[%emt 0:00:07]} Kf6 {[%emt 0:00:00]} 44. Bg8 {[%emt 0:00:06]} Kg7 {[%emt 0:00:01]} 45. Be6 {[%emt 0:00:05]} Kf6 {[%emt 0:00:02]} 46. Bd7 Nc3 47. h6 Ne2+ 48. Kg4 Nc3 49. Kf4 Ba6 1/2-1/2

[Event "ESP-ch Rapid 2018"]
[Site "Linares"]
[Date "2018.08.19"]
[Round "1"]
[White "Crespo Ruiz, Manuel Maria"]
[Black "Tejedor Fuente, Enrique"]
[Result "0-1"]
[ECO "D03"]
[WhiteElo "2026"]
[BlackElo "2408"]
[Annotator "NA RC"]
[PlyCount "61"]
[EventDate "2018.08.19"]
[EventType "team-tourn"]
[EventCountry "ESP"]
[SourceTitle "playchess.com"]
[Source "ChessBase"]
[SourceQuality "1"]
[TimeControl "900+5"]

1. d4 {[%emt 0:00:00]} Nf6 {[%emt 0:00:03]} 2. Nf3 {[%emt 0:00:02]} d5 {[%emt 0:00:26]} 3. Bg5 {[%emt 0:00:51]} Nbd7 {[%emt 0:00:31]} 4. e3 {[%emt 0:00:05]} h6 {[%emt 0:00:36]} 5. Bh4 {[%emt 0:00:04]} c5 {[%emt 0:00:13]} 6. Nbd2 {[%emt 0:00:05]} b6 {[%emt 0:00:15]} 7. c3 {[%emt 0:00:05]} Bb7 {[%emt 0:00:19]} 8. Bd3 {[%emt 0:00:10]} g6 {[%emt 0:00:32]} 9. O-O {[%emt 0:00:33]} Bg7 {[%emt 0:00:01]} 10. Qe2 {[%emt 0:00:18]} O-O {[%emt 0:00:06]} 11. Ne5 {[%emt 0:00:32]} Ne4 {[%emt 0:01:39]} 12. f4 {[%emt 0:01:37]} Nxd2 {[%emt 0:00:44]} 13. Qxd2 {[%emt 0:00:06]} Nf6 {[%emt 0:00:07]} 14. g4 {[%emt 0:02:37]} Ne4 {[%emt 0:01:15]} 15. Qe2 {[%emt 0:00:34]} Kh7 {[%emt 0:00:45]} 16. Rad1 {[%emt 0:01:44]} f6 {[%emt 0:01:01]} 17. Nf3 {[%emt 0:02:18]} a5 {[%emt 0:01:04]} 18. c4 {[%emt 0:00:39]} Qc8 {[%emt 0:00:37]} 19. h3 {[%emt 0:01:30]} dxc4 {[%emt 0:00:51]} 20. Bxc4 {[%emt 0:00:13]} Nd6 {[%emt 0:00:07]} 21. Bd3 {[%emt 0:00:32]} c4 {[%emt 0:00:04]} 22. Bc2 {[%emt 0:00:27]} Qc6 {[%emt 0:01:19]} 23. d5 {[%emt 0:00:26]} Qc5 {[%emt 0:00:05]} 24. Qd2 {[%emt 0:00:23]} Rac8 {[%emt 0:00:23]} 25. Bf2 {[%emt 0:00:51]} c3 {[%emt 0:00:06]} 26. bxc3 {[%emt 0:00:03]} Qxc3 {[%emt 0:00:03]} 27. Qxc3 {[%emt 0:00:21]} Rxc3 {[%emt 0:00:01]} 28. Ba4 {[%emt 0:00:03]} b5 {[%emt 0:00:04]} 29. Bb3 {[%emt 0:00:08]} a4 {[%emt 0:00:02]} 30. Be1 {[%emt 0:00:01]} Rcc8 {[%emt 0:00:16]} 31. Nd4 0-1

[Event "ESP-ch Rapid 2018"]
[Site "Linares"]
[Date "2018.08.19"]
[Round "1"]
[White "Hernandez Perez, Juan Carlos"]
[Black "Pallardo Lozoya, Jose Vicente"]
[Result "0-1"]
[ECO "B10"]
[WhiteElo "1946"]
[BlackElo "2382"]
[Annotator "ChessBase"]
[PlyCount "98"]
[EventDate "2018.08.19"]
[EventType "team-tourn"]
[EventCountry "ESP"]
[SourceTitle "playchess.com"]
[Source "ChessBase"]
[SourceQuality "1"]
[TimeControl "900+5"]

1. e4 {[%emt 0:00:00]} c6 {[%emt 0:00:00]} 2. Nf3 {[%emt 0:00:01]} d5 {[%emt 0:00:00]} 3. exd5 {[%emt 0:00:10]} cxd5 {[%emt 0:00:01]} 4. d4 {[%emt 0:00:01]} a6 {[%emt 0:00:27]} 5. Bd3 {[%emt 0:00:08]} Bg4 {[%emt 0:00:08]} 6. c3 {[%emt 0:00:06]} Nc6 {[%emt 0:00:17]} 7. O-O {[%emt 0:00:21]} Nf6 {[%emt 0:00:15]} 8. Re1 {[%emt 0:00:24]} e6 {[%emt 0:00:06]} 9. Bg5 {[%emt 0:00:29]} Be7 {[%emt 0:00:14]} 10. Nbd2 {[%emt 0:00:10]} Rc8 {[%emt 0:02:34]} 11. Nf1 {[%emt 0:01:53]} Qb6 {[%emt 0:00:51]} 12. Rb1 {[%emt 0:01:16]} Qc7 {[%emt 0:02:33]} 13. Ne3 {[%emt 0:00:16]} Bh5 {[%emt 0:00:08]} 14. Bxf6 {[%emt 0:00:16]} gxf6 {[%emt 0:00:02]} 15. Kh1 {[%emt 0:01:45]} Qf4 {[%emt 0:01:51]} 16. Nf1 {[%emt 0:02:30]} Bxf3 {[%emt 0:01:05]} 17. Qxf3 {[%emt 0:00:08]} Qxf3 {[%emt 0:00:01]} 18. gxf3 {[%emt 0:00:03]} Bd6 {[%emt 0:00:31]} 19. Ng3 {[%emt 0:00:11]} h5 {[%emt 0:00:22]} 20. Nf5 {[%emt 0:02:18]} Be7 {[%emt 0:00:36]} 21. Ne3 {[%emt 0:00:04]} f5 {[%emt 0:00:33]} 22. Rg1 {[%emt 0:00:13]} Kf8 {[%emt 0:00:22]} 23. Rbe1 {[%emt 0:00:54]} Bf6 {[%emt 0:00:15]} 24. Ng2 {[%emt 0:00:42]} Be7 {[%emt 0:00:12]} 25. Nf4 {[%emt 0:00:15]} Rh6 {[%emt 0:00:03]} 26. Rg2 {[%emt 0:00:10]} Bd6 {[%emt 0:00:06]} 27. Nh3 {[%emt 0:00:14]} Ne7 {[%emt 0:00:26]} 28. Ng5 {[%emt 0:00:16]} h4 {[%emt 0:00:04]} 29. h3 {[%emt 0:00:12]} Bf4 {[%emt 0:00:10]} 30. Bc2 {[%emt 0:00:39]} Rc6 {[%emt 0:00:06]} 31. Ba4 {[%emt 0:00:03]} b5 {[%emt 0:00:05]} 32. Bc2 {[%emt 0:00:02]} Ng6 {[%emt 0:00:30]} 33. a4 {[%emt 0:00:02]} b4 {[%emt 0:00:02]} 34. Bd3 {[%emt 0:00:12]} bxc3 {[%emt 0:00:04]} 35. bxc3 {[%emt 0:00:01]} Bxg5 {[%emt 0:00:59]} 36. Rxg5 {[%emt 0:00:02]} a5 {[%emt 0:00:02]} 37. Rc1 {[%emt 0:00:20]} Ke7 {[%emt 0:00:06]} 38. Bb5 {[%emt 0:00:05]} Rc7 {[%emt 0:00:06]} 39. Kh2 {[%emt 0:00:08]} Rh8 {[%emt 0:00:03]} 40. Rgg1 {[%emt 0:00:06]} Rhc8 {[%emt 0:00:02]} 41. Rg5 {[%emt 0:00:29]} Rxc3 {[%emt 0:00:03]} 42. Rxc3 {[%emt 0:00:02]} Rxc3 {[%emt 0:00:01]} 43. Rh5 {[%emt 0:00:09]} Rxf3 {[%emt 0:00:07]} 44. Kg1 {[%emt 0:00:03]} Rxh3 {[%emt 0:00:09]} 45. Rg5 {[%emt 0:00:08]} Rc3 {[%emt 0:00:10]} 46. Kf1 {[%emt 0:00:05]} Rc2 {[%emt 0:00:11]} 47. Ke1 {[%emt 0:00:07]} Kf6 {[%emt 0:00:01]} 48. Rg2 {[%emt 0:00:09]} Rb2 {[%emt 0:00:15]} 49. Be8 {[%emt 0:00:03]} Rb4 {[%emt 0:00:02]} 0-1